fUST/lending_fUST_20240320
["ID","MTS","AMOUNT","RATE_DAILY","PERIOD"]
[319566771,1710867038346,-500.0,0.00092899,120]
[319566773,1710867038356,-500.0,0.00092899,120]
[319566775,1710867038366,-500.0,0.00092899,120]
[319566776,1710867038379,-500.0,0.00092899,120]
[319566777,1710867038388,-189514.19142854,0.00092914,120]
[319566778,1710867038398,-189514.19142854,0.00092979,120]
[319566779,1710867038407,-189514.19142854,0.00092994,120]
[319566780,1710867038416,-500.0,0.00092999,120]
[319566781,1710867038426,-500.0,0.00092999,120]
[319566783,1710867038435,-500.0,0.00092999,120]
[319566785,1710867038445,-500.0,0.00092999,120]
[319566787,1710867038454,-500.0,0.00092999,120]
[319566788,1710867038463,-220.95619116,0.00092999,120]
[319566790,1710867038472,-1000.0,0.00093,120]
[319566792,1710867038481,-10000.0,0.00093,120]
[319566794,1710867038490,-150.5,0.0009347,35]
[319566795,1710867038500,-150.5,0.0009347,35]
[319566796,1710867038510,-150.5,0.0009347,35]
[319566797,1710867038519,-150.5,0.0009348,35]
[319566798,1710867038528,-150.5,0.0009348,35]
[319566799,1710867038538,-160.35,0.0009348,35]
[319566800,1710867038547,-150.5,0.0009348,35]
[319566801,1710867038557,-150.5,0.0009349,35]
[319566802,1710867038566,-150.5,0.0009349,35]
[319566803,1710867038574,-150.5,0.0009349,35]
[319566804,1710867038585,-150.5,0.0009349,35]
[319566805,1710867038594,-160.0,0.00093499,120]
[319566806,1710867038604,-160.0,0.00093499,120]
[319566807,1710867038613,-198367.4103958,0.000935,120]
[319566866,1710867040073,-366.3,0.00082191,120]
[319566966,1710867042471,-133.7,0.00082191,120]
[319566967,1710867042480,-500.0,0.00082191,120]
[319566968,1710867042490,-1254156.04445823,0.000935,120]
[319566969,1710867042500,-1524.90215778,0.00093999,30]
[319566970,1710867042510,-1000.0,0.000945,120]
[319566972,1710867042520,-1000.0,0.000955,120]
[319566973,1710867042530,-500.0,0.0009589,120]
[319566974,1710867042540,-20000.0,0.00099997,120]
[319566975,1710867042549,-175.75,0.001,30]
[319566977,1710867042559,-166.477447,0.001,2]
[319566978,1710867042569,-175.75,0.001,30]
[319566979,1710867042577,-500.0,0.00109589,120]
[319566980,1710867042587,-2017.37,0.00109589,120]
[319566981,1710867042597,-20000.0,0.00110404,120]
[319566982,1710867042607,-1000.0,0.00114,120]
[319566983,1710867042616,-1000.0,0.00119,120]
[319566986,1710867042631,-20000.0,0.00121895,120]
[319566989,1710867042640,-500.0,0.00123287,120]
[319566991,1710867042650,-1000.0,0.00124,120]
[319566994,1710867042659,-500.0,0.00128506,90]
[319566996,1710867042669,-500.0,0.0012878,90]
[319566998,1710867042678,-1000.0,0.00129,120]
[319567000,1710867042688,-500.0,0.00129054,90]
[319567003,1710867042697,-500.0,0.00129328,90]
[319567007,1710867042707,-500.0,0.00129602,90]
[319567010,1710867042717,-500.0,0.00129876,90]
[319567015,1710867042729,-500.0,0.0013015,90]
[319567017,1710867042739,-500.0,0.00130424,90]
[319567021,1710867042749,-500.0,0.00130698,90]
[319567025,1710867042759,-500.0,0.00130972,90]
[319567028,1710867042768,-500.0,0.00131246,90]
[319567029,1710867042778,-500.0,0.00131794,90]
[319567032,1710867042788,-500.0,0.00132342,90]
[319567034,1710867042798,-500.0,0.0013289,90]
[319567036,1710867042808,-500.0,0.00133438,90]
[319567037,1710867042819,-500.0,0.00133986,90]
[319567038,1710867042831,-1000.0,0.00134,120]
[319567039,1710867042841,-500.0,0.00134534,90]
[319567040,1710867042851,-20000.0,0.00134582,120]
[319567041,1710867042861,-500.0,0.00135082,90]
[319567042,1710867042878,-500.0,0.0013563,90]
[319567044,1710867042887,-473.01888723,0.00136178,90]
[319567045,1710867042897,-500.0,0.00136986,120]
[319567047,1710867042906,-1000.0,0.00139,120]
[319567048,1710867042917,-1000.0,0.00144,120]
[319567049,1710867042926,-20000.0,0.0014859,120]
[319567050,1710867042936,-1000.0,0.00149,120]
[319567051,1710867042945,-500.0,0.00150684,120]
[319567052,1710867042955,-1000.0,0.00150684,7]
[319567054,1710867042964,-313.8109639,0.00153583,120]
[319567055,1710867042973,-1000.0,0.00154,120]
[319567057,1710867042983,-1000.0,0.00159,120]
[319567058,1710867042994,-11620.84,0.0015956,120]
[319567060,1710867043004,-582.0,0.001601,30]
[319567061,1710867043013,-153.0,0.00163233,120]
[319567062,1710867043023,-153.0,0.00163233,120]
[319567063,1710867043033,-153.0,0.00163233,120]
[319567064,1710867043043,-153.0,0.00163233,120]
[319567065,1710867043053,-153.0,0.00163233,120]
[319567066,1710867043062,-153.0,0.00163233,120]
[319567067,1710867043071,-153.0,0.00163233,120]
[319567068,1710867043081,-445.7019633,0.00163562,120]
[319567069,1710867043091,-153.0,0.00163562,120]
[319567070,1710867043101,-153.0,0.00163562,120]
[319567071,1710867043110,-153.0,0.00163562,120]
[319567072,1710867043119,-153.0,0.00163562,120]
[319567073,1710867043132,-153.0,0.00163562,120]
[319567074,1710867043141,-153.0,0.00163562,120]
[319567075,1710867043150,-153.0,0.00163562,120]
[319567076,1710867043160,-153.0,0.00163562,120]
[319567077,1710867043169,-153.0,0.00163562,120]
[319567078,1710867043179,-153.0,0.00163562,120]
[319567079,1710867043188,-153.0,0.00163562,120]
[319567080,1710867043198,-153.0,0.00163836,120]
[319567082,1710867043207,-153.0,0.00163836,120]
[319567084,1710867043216,-153.0,0.00163836,120]
[319567085,1710867043225,-153.0,0.00163836,120]
[319567086,1710867043235,-153.0,0.00163836,120]
[319567087,1710867043244,-153.0,0.00163836,120]
[319567088,1710867043253,-153.0,0.00163836,120]
[319567089,1710867043263,-153.0,0.00163836,120]
[319567090,1710867043272,-153.0,0.00163836,120]
[319567091,1710867043282,-1000.0,0.00164,120]
[319567092,1710867043291,-20000.0,0.00164055,120]
[319567093,1710867043304,-6494.86772729,0.0016437,120]
[319567094,1710867043314,-500.0,0.00164383,120]
[319567095,1710867043323,-1500.0,0.00164384,120]
[319567096,1710867043333,-1500.0,0.00164384,120]
[319567097,1710867043342,-1500.0,0.00164384,120]
[319567098,1710867043352,-1500.0,0.00164384,120]
[319567099,1710867043361,-1500.0,0.00164384,120]
[319567100,1710867043370,-1500.0,0.00164384,120]
[319567101,1710867043384,-1500.0,0.00164384,120]
[319567102,1710867043393,-1500.0,0.00164384,120]
[319567103,1710867043401,-1500.0,0.00164384,120]
[319567104,1710867043411,-1500.0,0.00164384,120]
[319567105,1710867043419,-1500.0,0.00164384,120]
[319567106,1710867043428,-1500.0,0.00164384,120]
[319567107,1710867043438,-1500.0,0.00164384,120]
[319567108,1710867043447,-1500.0,0.00164384,120]
[319567109,1710867043456,-1500.0,0.00164384,120]
[319567110,1710867043465,-1500.0,0.00164384,120]
[319567111,1710867043475,-1500.0,0.00164384,120]
[319567112,1710867043484,-1500.0,0.00164384,120]
[319567113,1710867043494,-1500.0,0.00164384,120]
[319567114,1710867043503,-1500.0,0.00164384,120]
[319567115,1710867043512,-1500.0,0.00164384,120]
[319567116,1710867043521,-1500.0,0.00164384,120]
[319567117,1710867043530,-1500.0,0.00164384,120]
[319567118,1710867043540,-1500.0,0.00164384,120]
[319567119,1710867043549,-1500.0,0.00164384,120]
[319567120,1710867043558,-1500.0,0.00164384,120]
[319567121,1710867043568,-1500.0,0.00164384,120]
[319567122,1710867043577,-1525.083044,0.00164384,120]
[319567123,1710867043586,-153.0,0.00164384,120]
[319567124,1710867043595,-153.0,0.00164384,120]
[319567125,1710867043605,-153.0,0.00164384,120]
[319567126,1710867043615,-153.0,0.00164384,120]
[319567127,1710867043627,-153.0,0.00164384,120]
[319567128,1710867043636,-153.0,0.00164384,120]
[319567129,1710867043645,-153.0,0.00164384,120]
[319567130,1710867043654,-153.0,0.00164384,120]
[319567131,1710867043663,-153.0,0.00164384,120]
[319567132,1710867043672,-153.0,0.00164384,120]
[319567133,1710867043681,-153.0,0.00164384,120]
[319567134,1710867043690,-153.0,0.00164384,120]
[319567135,1710867043698,-301.368205,0.00164384,120]
[319567136,1710867043707,-153.0,0.00164384,120]
[319567137,1710867043716,-153.0,0.00164384,120]
[319567138,1710867043725,-153.0,0.00164384,120]
[319567139,1710867043734,-153.0,0.00164384,120]
[319567140,1710867043743,-153.0,0.00164384,120]
[319567141,1710867043751,-153.0,0.00164384,120]
[319567142,1710867043760,-153.0,0.00164384,120]
[319567143,1710867043769,-153.0,0.00164384,120]
[319567144,1710867043778,-153.0,0.00164384,120]
[319567145,1710867043786,-153.0,0.00164384,120]
[319567146,1710867043795,-153.0,0.00164384,120]
[319567147,1710867043804,-153.0,0.00164384,120]
[319567148,1710867043813,-153.0,0.00164384,120]
[319567149,1710867043822,-153.0,0.00164384,120]
[319567150,1710867043830,-153.0,0.00164384,120]
[319567151,1710867043840,-153.0,0.00164384,120]
[319567152,1710867043849,-153.0,0.00164384,120]
[319567153,1710867043858,-153.0,0.00164384,120]
[319567154,1710867043867,-153.0,0.00164384,120]
[319567155,1710867043879,-153.0,0.00164384,120]
[319567156,1710867043963,-153.0,0.00164384,120]
[319567157,1710867043972,-153.0,0.00164384,120]
[319567158,1710867043981,-153.0,0.00164384,120]
[319567159,1710867043990,-153.0,0.00164384,120]
[319567160,1710867043998,-153.0,0.00164384,120]
[319567161,1710867044008,-153.0,0.00164384,120]
[319567162,1710867044017,-153.0,0.00164384,120]
[319567163,1710867044026,-153.0,0.00164384,120]
[319567164,1710867044035,-153.0,0.00164384,120]
[319567165,1710867044044,-153.0,0.00164384,120]
[319567166,1710867044053,-153.0,0.00164384,120]
[319567167,1710867044063,-153.0,0.00164384,120]
[319567168,1710867044072,-153.0,0.00164384,120]
[319567169,1710867044082,-153.0,0.00164384,120]
[319567170,1710867044091,-153.0,0.00164384,120]
[319567171,1710867044101,-153.0,0.00164384,120]
[319567172,1710867044110,-153.0,0.00164384,120]
[319567173,1710867044120,-1000.0,0.00169,120]
[319567174,1710867044132,-1000.0,0.00169,120]
[319567175,1710867044142,-1000.0,0.00174,120]
[319567176,1710867044151,-313.8109639,0.00174406,120]
[319567177,1710867044161,-500.0,0.00178082,120]
[319567178,1710867044170,-1000.0,0.00179,120]
[319567179,1710867044180,-20000.0,0.0018113,120]
[319567180,1710867044189,-313.8109639,0.00187652,120]
[319567181,1710867044199,-20000.0,0.00189,120]
[319567182,1710867044208,-500.0,0.0019178,120]
[319567183,1710867044218,-156.89016688,0.00193,120]
[319567184,1710867044228,-1000.0,0.00194,120]
[319567185,1710867044238,-30000.0,0.001945,120]
[319567186,1710867044248,-313.8109639,0.00195746,120]
[319567187,1710867044258,-150.5,0.0019897,35]
[319567188,1710867044268,-150.5,0.0019898,35]
[319567189,1710867044277,-150.5,0.0019899,35]
[319567190,1710867044287,-230.58,0.0019899,35]
[319567191,1710867044297,-1000.0,0.00199,120]
[319567192,1710867044307,-20000.0,0.00199982,120]
[319567193,1710867044317,-160.0,0.00199999,120]
[319567194,1710867044330,-160.0,0.00199999,120]
[319567195,1710867044342,-2000.0,0.002,120]
[319567196,1710867044352,-1000.0,0.002,120]
[319567197,1710867044361,-2000.0,0.002,120]
[319567198,1710867044372,-2059835.45024604,0.002,120]
[319567199,1710867044706,-25674.21834449,0.002,120]
[319567239,1710867233230,50000.0,0.0002,2]
[319567240,1710867233258,2024.65910988,0.0002,2]
[319567251,1710867255544,155.48594838,0.000195,2]
[319567252,1710867265014,636.20567045,0.0002,2]
[319567253,1710867269159,377.85,0.00012,7]
[319567265,1710867438023,245.86833913,0.00027895,2]
[319567287,1710867781344,180.429433,0.00032,2]
[319567288,1710867905715,1989.22542,0.00032,2]
[319567289,1710867918660,154.86062544,0.00032,14]
[319567290,1710867984266,154.86062544,0.00032,14]
[319567291,1710867985210,218.2189913,0.00032,4]
[319567292,1710867985766,228.53498416,0.00032,4]
[319567293,1710867987673,-2000.0,0.00051111,50]
[319567294,1710867990744,154.86062544,0.00032,4]
[319567295,1710867991192,155.17411374,0.00032,4]
[319567296,1710867992745,1569.60958846,0.00032,4]
[319567297,1710867998011,1046.83881358,0.00031999,4]
[319567298,1710868000156,312.98118137,0.00032,2]
[319567299,1710868002506,155.05182361,0.00032,4]
[319567300,1710868002537,1046.83881358,0.00031999,4]
[319567302,1710868030146,-1907.40590693,0.00032145,2]
[319567303,1710868030174,-409.28753025,0.00032245,4]
[319567304,1710868030201,-237.67272782,0.00032246,7]
[319567305,1710868030229,-620.0454995,0.00037057,2]
[319567306,1710868030256,-155.53,0.00038,7]
[319567307,1710868030283,-166.666666,0.00050727,2]
[319567308,1710868030309,-276.16378765,0.00051407,120]
[319567309,1710868031127,-16.80496235,0.00051407,120]
[319567310,1710868031157,-2000.0,0.00052025,50]
[319567311,1710868031188,-166.666666,0.0005211,2]
[319567312,1710868031215,-4249.0668931,0.00052283,2]
[319567313,1710868031242,-7298.0,0.00052625,120]
[319567314,1710868031269,-152.0,0.00052656,120]
[319567315,1710868031295,-223.0,0.00052899,60]
[319567316,1710868031324,-287.46530222,0.000529,30]
[319567317,1710868031350,-152.0,0.0005293,120]
[319567318,1710868031377,-154.0,0.00053204,120]
[319567319,1710868031405,-24890.0,0.00053209,2]
[319567320,1710868031447,-166.666666,0.00053493,2]
[319567321,1710868031472,-155.41884066,0.00054287,4]
[319567322,1710868031495,-166.666666,0.00054876,2]
[319567323,1710868031720,-24838.21533513,0.00055296,2]
[319567324,1710868031741,-199.64185817,0.00055296,2]
[319567325,1710868031763,-645.97921604,0.00055296,2]
[319567326,1710868031784,-500.0,0.00055394,120]
[319567327,1710868031805,-202.84155287,0.00055394,120]
[319567328,1710868031828,-500.0,0.00055394,120]
[319567329,1710868031848,-500.0,0.00055394,120]
[319567330,1710868031869,-500.0,0.00055394,120]
[319567331,1710868031891,-500.0,0.00055394,120]
[319567332,1710868031913,-500.0,0.00055394,120]
[319567333,1710868031938,-500.0,0.00055394,120]
[319567334,1710868031960,-500.0,0.00055394,120]
[319567335,1710868031981,-500.0,0.00055394,120]
[319567336,1710868032003,-500.0,0.00055394,120]
[319567337,1710868032027,-207.02135054,0.00055394,120]
[319567338,1710868032047,-500.0,0.00055394,120]
[319567339,1710868032068,-500.0,0.00055394,120]
[319567340,1710868032088,-500.0,0.00055394,120]
[319567341,1710868032108,-500.0,0.00055394,120]
[319567342,1710868032129,-500.0,0.00055394,120]
[319567343,1710868032148,-500.0,0.00055394,120]
[319567344,1710868032168,-500.0,0.00055394,120]
[319567345,1710868032192,-500.0,0.00055394,120]
[319567346,1710868032212,-500.0,0.00055394,120]
[319567347,1710868032232,-500.0,0.00055394,120]
[319567348,1710868032252,-500.0,0.00055394,120]
[319567349,1710868032273,-500.0,0.00055394,120]
[319567350,1710868032296,-500.0,0.00055394,120]
[319567351,1710868032317,-500.0,0.00055394,120]
[319567352,1710868032337,-500.0,0.00055394,120]
[319567353,1710868032359,-500.0,0.00055394,120]
[319567354,1710868032379,-334.82626143,0.00055394,120]
[319567355,1710868032400,-500.0,0.00055394,120]
[319567356,1710868032425,-500.0,0.00055394,120]
[319567357,1710868032447,-500.0,0.00055394,120]
[319567358,1710868032467,-500.0,0.00055394,120]
[319567359,1710868032489,-500.0,0.00055394,120]
[319567360,1710868032511,-500.0,0.00055394,120]
[319567361,1710868032532,-500.0,0.00055394,120]
[319567362,1710868032552,-500.0,0.00055394,120]
[319567363,1710868032575,-500.0,0.00055394,120]
[319567364,1710868032597,-500.0,0.00055394,120]
[319567365,1710868032620,-500.0,0.00055394,120]
[319567366,1710868032645,-500.0,0.00055394,120]
[319567367,1710868032667,-500.0,0.00055394,120]
[319567368,1710868032690,-500.0,0.00055394,120]
[319567369,1710868032711,-500.0,0.00055394,120]
[319567370,1710868032732,-500.0,0.00055394,120]
[319567371,1710868032752,-500.0,0.00055394,120]
[319567372,1710868032772,-500.0,0.00055394,120]
[319567373,1710868032792,-500.0,0.00055394,120]
[319567374,1710868032813,-500.0,0.00055394,120]
[319567375,1710868032834,-500.0,0.00055394,120]
[319567376,1710868032854,-500.0,0.00055394,120]
[319567377,1710868032875,-444.57278951,0.00055394,120]
[319567378,1710868032896,-500.0,0.00055394,120]
[319567379,1710868032915,-264.64293732,0.00055394,120]
[319567380,1710868032938,-500.0,0.00055394,120]
[319567381,1710868032958,-500.0,0.00055394,120]
[319567382,1710868032977,-500.0,0.00055394,120]
[319567383,1710868032996,-500.0,0.00055394,120]
[319567384,1710868033016,-500.0,0.00055394,120]
[319567385,1710868033036,-500.0,0.00055394,120]
[319567386,1710868033056,-500.0,0.00055394,120]
[319567387,1710868033076,-500.0,0.00055394,120]
[319567388,1710868033096,-500.0,0.00055394,120]
[319567389,1710868033116,-500.0,0.00055394,120]
[319567390,1710868033137,-500.0,0.00055394,120]
[319567391,1710868033158,-199.99999999,0.00055394,120]
[319567392,1710868033180,-500.0,0.00055394,120]
[319567393,1710868033199,-500.0,0.00055394,120]
[319567394,1710868033220,-500.0,0.00055394,120]
[319567395,1710868033243,-500.0,0.00055394,120]
[319567396,1710868033266,-500.0,0.00055394,120]
[319567397,1710868033286,-500.0,0.00055394,120]
[319567398,1710868033309,-500.0,0.00055394,120]
[319567399,1710868033331,-500.0,0.00055394,120]
[319567400,1710868033354,-500.0,0.00055394,120]
[319567401,1710868033376,-500.0,0.00055394,120]
[319567402,1710868033399,-500.0,0.00055394,120]
[319567403,1710868033426,-500.0,0.00055394,120]
[319567404,1710868033448,-385.02702261,0.00055394,120]
[319567405,1710868033470,-868.14312116,0.00055394,4]
[319567406,1710868033491,-745.42948183,0.00055394,4]
[319567407,1710868033512,-154.86062544,0.00055394,4]
[319567408,1710868033534,-475.53963771,0.00055394,4]
[319567409,1710868033555,-1000.0,0.00055394,28]
[319567410,1710868033576,-367.16265237,0.00055394,4]
[319567411,1710868033597,-381.92699789,0.00055394,4]
[319567412,1710868033622,-1909.75594942,0.00055394,4]
[319567413,1710868033643,-695.49392365,0.00055394,4]
[319567414,1710868033664,-858.59377024,0.00055394,4]
[319567415,1710868033689,-1395.279328,0.00055394,4]
[319567416,1710868033709,-210.49701262,0.00055394,4]
[319567417,1710868033729,-179.4971122,0.00055394,4]
[319567418,1710868033749,-154.86062544,0.00055394,4]
[319567419,1710868033768,-491.13559024,0.00055394,4]
[319567420,1710868033788,-2181.35918814,0.00055394,4]
[319567421,1710868033809,-4835.76216628,0.00055394,4]
[319567422,1710868033829,-922.80688544,0.00055394,4]
[319567423,1710868033849,-500.0,0.00055395,120]
[319567424,1710868033869,-500.0,0.00055395,120]
[319567425,1710868033889,-363.28919255,0.00055395,120]
[319567426,1710868033910,-500.0,0.00055395,120]
[319567427,1710868034032,-613.49265565,0.00055395,120]
[319567428,1710868034054,-500.0,0.00055395,120]
[319567429,1710868034075,-500.0,0.00055395,120]
[319567430,1710868034097,-500.0,0.00055395,120]
[319567431,1710868034119,-155.69536824,0.00055395,120]
[319567432,1710868034140,-500.0,0.00055395,120]
[319567433,1710868034160,-500.0,0.00055395,120]
[319567434,1710868034184,-488.54932023,0.00055395,120]
[319567435,1710868034216,-500.0,0.00055395,120]
[319567436,1710868034238,-500.0,0.00055395,120]
[319567437,1710868034260,-500.0,0.00055395,120]
[319567438,1710868034280,-538.83399784,0.00055395,120]
[319567439,1710868034301,-500.0,0.00055395,120]
[319567440,1710868034323,-637.94970867,0.00055395,120]
[319567441,1710868034344,-500.0,0.00055395,120]
[319567442,1710868034365,-500.0,0.00055395,120]
[319567443,1710868034386,-598.14952984,0.00055395,120]
[319567444,1710868034407,-500.0,0.00055395,120]
[319567445,1710868034434,-500.0,0.00055395,120]
[319567446,1710868034458,-500.0,0.00055395,120]
[319567447,1710868034481,-500.0,0.00055395,120]
[319567448,1710868034502,-500.0,0.00055395,120]
[319567449,1710868034524,-500.0,0.00055395,120]
[319567450,1710868034545,-500.0,0.00055395,120]
[319567451,1710868034565,-500.0,0.00055395,120]
[319567452,1710868034587,-500.0,0.00055395,120]
[319567453,1710868034608,-500.0,0.00055395,120]
[319567454,1710868034631,-500.0,0.00055395,120]
[319567455,1710868034655,-500.0,0.00055395,120]
[319567456,1710868034676,-590.61266163,0.00055395,120]
[319567457,1710868034697,-500.0,0.00055395,120]
[319567458,1710868034719,-500.0,0.00055395,120]
[319567459,1710868034741,-500.0,0.00055395,120]
[319567460,1710868034763,-500.0,0.00055395,120]
[319567461,1710868034784,-500.0,0.00055395,120]
[319567462,1710868034808,-500.0,0.00055395,120]
[319567463,1710868034829,-500.0,0.00055395,120]
[319567464,1710868034858,-500.0,0.00055395,120]
[319567465,1710868034879,-500.0,0.00055395,120]
[319567466,1710868034901,-500.0,0.00055395,120]
[319567467,1710868034924,-500.0,0.00055395,120]
[319567468,1710868034944,-200.0,0.00055395,120]
[319567469,1710868034965,-300.0,0.00055395,120]
[319567470,1710868034987,-200.0,0.00055395,120]
[319567471,1710868035007,-500.0,0.00055395,120]
[319567472,1710868035027,-300.0,0.00055395,120]
[319567473,1710868035047,-200.0,0.00055395,120]
[319567474,1710868035072,-500.0,0.00055395,120]
[319567475,1710868035093,-300.0,0.00055395,120]
[319567476,1710868035114,-500.0,0.00055395,120]
[319567477,1710868035136,-356.33570562,0.00055395,120]
[319567478,1710868035157,-327.17475439,0.00055395,120]
[319567479,1710868035181,-500.0,0.00055395,120]
[319567480,1710868035203,-648.31402905,0.00055395,120]
[319567481,1710868035225,-500.0,0.00055395,120]
[319567482,1710868035246,-300.0,0.00055395,120]
[319567483,1710868035267,-542.78078029,0.00055395,120]
[319567484,1710868035288,-500.0,0.00055395,120]
[319567485,1710868035310,-160.0,0.00055774,90]
[319567486,1710868035332,-160.0,0.00055774,90]
[319567487,1710868035354,-160.0,0.00055774,90]
[319567488,1710868035376,-160.0,0.00055774,90]
[319567489,1710868035396,-1393.14511291,0.00055774,5]
[319567490,1710868035418,-248.0,0.00055888,35]
[319567491,1710868035444,-150.5,0.00055898,35]
[319567492,1710868035465,-150.5,0.00055908,35]
[319567493,1710868035488,-166.666666,0.00056259,2]
[319567494,1710868035509,-166.666666,0.00057642,2]
[319567495,1710868035531,-542.71907416,0.000585,45]
[319567496,1710868035552,-292.96875,0.00059974,120]
[319567497,1710868035579,-237.67272782,0.0006584,120]
[319567498,1710868035600,-292.96875,0.00068542,120]
[319567499,1710868035624,-154.86062544,0.00069,30]
[319567500,1710868035645,-7305.28430586,0.00074299,120]
[319567501,1710868037575,242.74861023,0.00027152,2]
[319567505,1710868153109,-2110.21913802,0.00032144,4]
[319567506,1710868153130,-242.74861023,0.00033595,7]
[319567507,1710868153149,-242.74861023,0.00042913,30]
[319567508,1710868153169,-1196.38721552,0.00054288,4]
[319567509,1710868153190,-15396.68923325,0.00054289,2]
[319567510,1710868161266,-2000.0,0.00050744,50]
[319567511,1710868161286,-847.59247415,0.00051651,50]
[319567514,1710868230982,187.57019599,0.00031,2]
[319567575,1710868232310,-283.71554384,0.00051134,2]
[319567577,1710868232323,-1152.40752585,0.00051651,50]
[319567579,1710868232333,-782.30863304,0.00051651,4]
[319567581,1710868232343,-1196.38721552,0.00052556,4]
[319567583,1710868232352,-2000.0,0.00052557,50]
[319567585,1710868232362,-271.1554492,0.00053403,2]
[319567586,1710868232372,-3262.83932,0.00053464,50]
[319567588,1710868232382,-197.148553,0.00053848,2]
[319567590,1710868232391,-164.0327001,0.00053916,2]
[319567592,1710868232401,-7169.8458,0.00054289,2]
[319567984,1710868250310,-1004.81129007,0.000449,120]
[319567985,1710868250321,-3000.66538886,0.00051133,4]
[319567986,1710868250335,-250.0,0.00054138,2]
[319567987,1710868250346,-2333.46496675,0.00054289,2]
[319567988,1710868250356,-995.3194908,0.00054442,2]
[319567989,1710868250366,-242.74861023,0.00054865,60]
[319567990,1710868250376,-150.0,0.00055,120]
[319567991,1710868250386,-928.09516106,0.00055299,4]
[319567992,1710868250396,-455.21619354,0.00055374,4]
[319567993,1710868250407,-2946.13066934,0.00055374,4]
[319567994,1710868250418,-915.19227971,0.00055374,4]
[319567995,1710868250428,-425.48083276,0.00055374,4]
[319567996,1710868250438,-285.22676191,0.00055374,4]
[319567997,1710868250449,-169.906622,0.00055374,4]
[319567998,1710868250459,-170.66943208,0.00055374,4]
[319567999,1710868250470,-151.0,0.00055375,30]
[319568000,1710868250481,-151.0,0.00055375,30]
[319568001,1710868250491,-151.0,0.00055375,30]
[319568002,1710868250502,-151.0,0.00055375,30]
[319568003,1710868250513,-181.0,0.00055376,2]
[319568004,1710868250522,-73907.59900274,0.00055376,60]
[319568005,1710868251039,-1239.34612194,0.00055374,4]
[319568006,1710868251049,-5264.15387806,0.00055376,60]
[319568007,1710868437548,-802.11666527,0.00039491,4]
[319568008,1710868437570,-724.34448939,0.00039491,4]
[319568009,1710868437591,-154.86062544,0.00039492,4]
[319568010,1710868437612,-513.29711523,0.00039492,4]
[319568011,1710868437633,-154.86062544,0.00039492,4]
[319568012,1710868437653,-204.98847702,0.00039492,4]
[319568013,1710868437673,-154.86062544,0.00039492,4]
[319568014,1710868437694,-3045.20881226,0.00039493,2]
[319568015,1710868437714,-828.77020049,0.00039891,4]
[319568016,1710868437738,-154.86062544,0.00039892,4]
[319568017,1710868437758,-168.83173858,0.00039893,2]
[319568021,1710868504916,-157.48043496,0.00029999,2]
[319568022,1710868504939,-876.3244026,0.00029999,2]
[319568023,1710868504959,-300.0,0.0003,14]
[319568024,1710868504980,-6378.02289157,0.00031498,4]
[319568025,1710868505002,-2173.57910032,0.00031499,2]
[319568026,1710868505029,-19.59317055,0.000315,15]
[319568027,1710868571777,-154.86062544,0.00029897,2]